Cogmind - Beta 13 --- EXPLORER MODE // 2024.04.10 @ 22:36:43 Player: Iddmeister Result: Destroyed by AM-MKX(R) with Subdweller Beam Cannon Performance ------------- Evolutions (0) 0 Regions Visited (2) 400 Robots Destroyed (5) 25 Value Destroyed (127) 127 Prototype IDs (0) 0 Alien Tech Used (0) 0 Bonus (0) 0 TOTAL SCORE: 552 Bonus ------- None Cogmind --------- Core Integrity 0/250 Matter 300/300 Energy 400/400 System Corruption 0% Temperature Cool (38) Movement Core (800) Ox15 Location -10/Subcaves Parts ------- > --- POWER (1) -------- Subdweller Power Source > --- PROPULSION (2) --- (None) > --- UTILITY (3) ------ High-capacity Storage Unit Large Battery Targeting Computer > --- WEAPON (2) ------- (None) > --- INVENTORY (20) --- Ion Engine Sensor Array Weapon Shielding Light Armor Plating Cobbler Unit Peak State ------------ > --- POWER ------------ Light Ion Engine > --- PROPULSION ------- Light Treads Light Treads > --- UTILITY ---------- High-capacity Storage Unit Large Battery Targeting Computer > --- WEAPON ----------- EM Pulse Gun Light Assault Rifle > --- INVENTORY -------- Ion Engine Targeting Computer Weapon Shielding Light Armor Plating [Rating: 8] Favorites ----------- Power Light Ion Engine Engine Light Ion Engine Propulsion Light Treads Treads Light Treads Utility High-capacity Storage Unit Storage High-capacity Storage Unit Processor Targeting Computer Protection Weapon Shielding Weapon Light Assault Rifle Energy Gun EM Pulse Gun Ballistic Gun Light Assault Rifle Build | -11 -10 -10 ------- Run | Yrd Mat Sub Slots Evolved 1 | . 1 . Power . | . . . Propulsion . | . . . Utility 1 | . 1 . Weapon . | . . . Parts Attached 12 | 6 4 2 Power 2 | 1 . 1 Engine 2 | 1 . 1 Core . | . . . Reactor . | . . . Propulsion 2 | 2 . . Treads 2 | 2 . . Leg . | . . . Wheel . | . . . Hover . | . . . Flight . | . . . Utility 6 | 3 2 1 Device . | . . . Storage 3 | 1 2 . Processor 2 | 1 . 1 Hackware . | . . . Protection 1 | 1 . . Artifact . | . . . Weapon 2 | . 2 . Energy Gun 1 | . 1 . Energy Cannon . | . . . Ballistic Gun 1 | . 1 . Ballistic Cannon . | . . . Launcher . | . . . Special Weapon . | . . . Impact Weapon . | . . . Slashing Weapon . | . . . Piercing Weapon . | . . . Special Melee Weapon . | . . . Unidentified Prototypes . | . . . Parts Lost 3 | . . 3 Power . | . . . Propulsion 1 | . . 1 Utility . | . . . Weapon 2 | . . 2 Highest Loss Streak 3 | . . 3 To Critical Strikes . | . . . Average Slot Usage (%) 83 | . 87 76 Engine 12 | . 12 12 Treads 19 | . 22 12 Storage 24 | . 23 25 Processor 7 | . 9 2 Energy Gun 9 | . 7 11 Ballistic Gun 10 | . 10 11 Naked Turns . | . . . Heaviest Build 51 | 13 49 51 Greatest Support 40 | 40 40 20 Greatest Overweight (x) 15 | 1 2 15 Average Overweight (x) 1 | . 1 2 Largest Inventory Capacity 20 | 10 20 20 Average Capacity 18 | 8 19 20 Most Carried 7 | 5 6 7 Average Carried 4 | 3 4 5 Final Capacity 20 | 10 20 20 Final Carried 6 | 5 5 6 Class Distribution -------------------- 100% | Hacker-Mutant Dominant Class ---------------- Hacker-Mutant | -10/Materials Hacker-Mutant | -10/Subcaves Resources | -11 -10 -10 ----------- Run | Yrd Mat Sub Matter Collected 330 | 166 154 10 Remotely . | . . . Salvage Created 156 | . 156 . Parts 10 | . 10 . Haulers Intercepted . | . . . Recyclers Shooed . | . . . Parts Field Recycled . | . . . Retrieved Matter . | . . . Parts Self-Destructed . | . . . Prevented . | . . . Kills | -11 -10 -10 ------- Run | Yrd Mat Sub Combat Hostiles Destroyed 4 | . 4 . Guns 3 | . 3 . AOE 1 | . 1 . Classes Destroyed 3 | . 3 . Watcher 1 | . 1 . Swarmer 2 | . 2 . Grunt 2 | . 2 . Best Kill Streak 2 | . 2 . Combat Bots Only 2 | . 2 . Max Kills in Single Turn 1 | . 1 . Gunslinging . | . . . Exploded 1 | . 1 . Melee . | . . . Uniques/NPCs Destroyed . | . . . Combat | -11 -10 -10 -------- Run | Yrd Mat Sub Hostile Shots Fired 77 | . 41 36 Missed 27 | . 14 13 Damage Taken 681 | . 194 487 Core 259 | . 46 213 Absorbed by Shields . | . . . Ignored by Resistances 408 | . 125 283 Core Remaining (%) 100 | 100 . . Volleys Fired 32 | . 32 . Largest 1 | . 1 . Hottest 40 | . 40 . Shots Fired 32 | . 32 . Gun 32 | . 32 . Cannon . | . . . Launcher . | . . . Special . | . . . Kinetic 20 | . 20 . Thermal . | . . . Explosive . | . . . Electromagnetic 12 | . 12 . Robot Hit Streak 24 | . 24 . Robot Miss Streak 2 | . 2 . Penetration Max . | . . . Secondary Targets . | . . . Shots Hit Robots 28 | . 28 . Core Hits 8 | . 8 . Critical Kills . | . . . Critical Parts Destroyed . | . . . Critical Strikes . | . . . Melee Attacks . | . . . Impact . | . . . Slashing . | . . . Piercing . | . . . Sneak Attacks . | . . . Combat Hostiles . | . . . Follow-up Attacks . | . . . Damage Inflicted 429 | . 429 . Guns 279 | . 279 . Cannons . | . . . Explosions 138 | . 138 . Melee . | . . . Ramming 12 | . 12 . Kinetic 157 | . 157 . Thermal 138 | . 138 . Explosive . | . . . Electromagnetic 122 | . 122 . Impact . | . . . Slashing . | . . . Piercing . | . . . Highest Corruption . | . . . Average Corruption . | . . . Corruption Purged . | . . . Corruption Blocked . | . . . Overload Shots . | . . . Overflow Damage 14 | . 14 . Projectiles . | . . . Explosions 14 | . 14 . Melee . | . . . Knockbacks . | . . . Impact . | . . . Kinetic . | . . . Secondary . | . . . Self-Inflicted Damage . | . . . Shots . | . . . Rammed 1 | . 1 . Targets Rammed 1 | . 1 . Kicked . | . . . Crushed . | . . . Highest Temperature 150 | . 9 150 Average Temperature 44 | . 7 88 Received Heat Transfer 408 | . 120 288 Siege Activations . | . . . Robots Corrupted . | . . . Combat Hostiles . | . . . Parts Fried . | . . . Impact Corruptions . | . . . Robots Melted . | . . . Combat Hostiles . | . . . Parts Melted . | . . . Heat Transferred 150 | . 150 . Parts Sabotaged . | . . . Parts Stolen . | . . . Parts Stripped . | . . . Power Chain Reactions 2 | . 2 . Alert | -11 -10 -10 ------- Run | Yrd Mat Sub Peak Influence 82 | . 82 . Initial . | . . . Average 33 | . 37 . Maximum Alert Level . | . . . Low Security (%) 100 | 100 100 . Level 1 . | . . . Level 2 . | . . . Level 3 . | . . . Level 4 . | . . . Level 5 . | . . . High Security . | . . . Max Security . | . . . Squads Dispatched . | . . . Investigation . | . . . Extermination . | . . . Reinforcement . | . . . Assault . | . . . Garrison . | . . . Intercept . | . . . Searches Triggered . | . . . Construction Impeded . | . . . Haulers Reinforced . | . . . Active Scanning Responses . | . . . Cargo Convoy Interrupts . | . . . Stealth | -11 -10 -10 --------- Run | Yrd Mat Sub Distress Signals . | . . . Communications Jammed . | . . . Distress Signals . | . . . Times Spotted 21 | . 8 13 Peak Tracking Total 10 | . 2 10 Tactical Retreats . | . . . Traps | -11 -10 -10 ------- Run | Yrd Mat Sub Traps Triggered 1 | . 1 . Indirectly . | . . . Trap Hack Attempts . | . . . Triggered . | . . . Disarmed . | . . . Reprogrammed . | . . . Reused . | . . . Traps Extracted . | . . . Installed . | . . . Triggered . | . . . Machines | -11 -10 -10 ---------- Run | Yrd Mat Sub Machines Disabled 1 | . 1 . Max in Single Turn 1 | . 1 . Machines Repaired . | . . . Machines Dismantled . | . . . Machines Sabotaged . | . . . Overloaded Fab Kills . | . . . Hacking | -11 -10 -10 --------- Run | Yrd Mat Sub Machines Accessed 1 | . 1 . Terminals 1 | . 1 . Fabricators . | . . . Repair Stations . | . . . Recycling Units . | . . . Scanalyzers . | . . . Garrison Access . | . . . Total Hacks 2 | . 2 . Successful 2 | . 2 . Failed . | . . . Catastrophic . | . . . Database Lockouts . | . . . Manual . | . . . Terminals 2 | . 2 . Fabricators . | . . . Repair Stations . | . . . Recycling Units . | . . . Scanalyzers . | . . . Garrison Access . | . . . Terminal Hacks 2 | . 2 . Record 1 | . 1 . Locate Traps 1 | . 1 . Fabricator Hacks . | . . . Repair Station Hacks . | . . . Recycling Unit Hacks . | . . . Scanalyzer . | . . . Garrison Access Hacks . | . . . Unauthorized Hacks . | . . . Terminals . | . . . Fabricators . | . . . Repair Stations . | . . . Recycling Units . | . . . Scanalyzers . | . . . Garrison Access . | . . . Data Cores Recovered . | . . . Used . | . . . Hacking Detections 1 | . 1 . Full Trace Events . | . . . Feedback Events . | . . . Feedback Blocked . | . . . Robot Schematics Acquired . | . . . Robots Built . | . . . Authchips . | . . . Time . | . . . Total Robot Build Rating . | . . . Part Schematics Acquired . | . . . Parts Built . | . . . Authchips . | . . . Time . | . . . Total Part Build Rating . | . . . Parts Repaired . | . . . Time . | . . . Parts Recycled . | . . . Recycled Matter . | . . . Retrieved Matter . | . . . Retrieved Components . | . . . Parts Scanalyzed . | . . . Part Schematics Acquired . | . . . Parts Damaged . | . . . Bothacking | -11 -10 -10 ------------ Run | Yrd Mat Sub Used RIF Installer . | . . . Robots Hacked . | . . . Non-combat . | . . . Combat . | . . . Robot Hacks Applied . | . . . Relay Couplers Released . | . . . Fabnet Peak Effective % . | . . . Robots Rewired . | . . . Allies Hacked . | . . . Hacks Repelled . | . . . Allies | -11 -10 -10 -------- Run | Yrd Mat Sub Total Allies . | . . . Largest Group . | . . . Highest-Rated Group . | . . . Highest-Rated Ally . | . . . Total Orders . | . . . Ally Attacks . | . . . Total Damage . | . . . Kills . | . . . Allies Corrupted . | . . . Allies Melted . | . . . Intel | -11 -10 -10 ------- Run | Yrd Mat Sub Robot Analysis Total . | . . . Derelict Logs Recovered 1 | . . 1 Drone Launches . | . . . Drone Recoveries . | . . . Exploration | -11 -10 -10 ------------- Run | Yrd Mat Sub Turns Passed 996 | 70 618 308 Spaces Moved 364 | 41 228 95 Core 12 | 11 . 1 Treads 352 | 30 228 94 Legs . | . . . Wheels . | . . . Hover . | . . . Flight . | . . . Fastest Speed 50 | 50 160 320 Average Speed 250 | 134 241 325 Slowest Speed 800 | 160 320 800 Overloaded Moves . | . . . Propulsion Burnouts . | . . . Robots Hopped . | . . . Cave-ins Triggered . | . . . Exploration Rate (%) 16 | 4 33 11 Regions Visited 2 Branch Regions 1 Pre-discovered Areas . | . . . Known Exits Taken 2 | 1 1 . Unknown Exits Taken . | . . . Scrap Searched . | . . . Spaces Dug . | . . . Terrain Destroyed 6 | . 6 . Melee . | . . . Projectile . | . . . AOE 6 | . 6 . Terrain Rammed . | . . . Walls Destroyed . | . . . Machines Disabled . | . . . Actions | -11 -10 -10 --------- Run | Yrd Mat Sub Total 425 | 56 269 100 Wait . | . . . Move 362 | 40 227 95 Hop . | . . . Pick Up 16 | 10 4 2 Fast Attach . | . . . Attach 9 | 5 3 1 Detach . | . . . Swap 3 | 1 1 1 Drop 2 | . 1 1 Fire 32 | . 32 . Melee . | . . . Ram . | . . . Kick . | . . . Crush 1 | . 1 . Escape Stasis . | . . . Rewire . | . . . Trap . | . . . Miscellaneous . | . . . Route ------- -11/Scrapyard -10/Materials -10/Subcaves History --------- Turn | Location | Event 19 | -11/Scrapyard | Identified exit to Materials 19 | -11/Scrapyard | Discovered exit to Materials (range 15) 71 | -11/Scrapyard | Entered Materials 71 | -10/Materials | Evolved 1 slot: Utility x1 302 | -10/Materials | Build established: Hacker-Mutant 664 | -10/Materials | Identified exit to Subcaves 664 | -10/Materials | Discovered exit to Subcaves (range 9) 689 | -10/Materials | Entered Subcaves 715 | -10/Subcaves | Learned Materials terminal intel 972 | -10/Subcaves | Ambushed by swarm of Subdwellers 975 | -10/Subcaves | Ambushed by Subdwellers from Twisted Machinery 975 | -10/Subcaves | Ambushed by Subdwellers from Twisted Machinery 976 | -10/Subcaves | Ambushed by Subdwellers from Twisted Machinery 976 | -10/Subcaves | Ambushed by Subdwellers from Twisted Machinery 978 | -10/Subcaves | Ambushed by Subdweller buried in earth 992 | -10/Subcaves | Ambushed by Subdweller buried in earth 993 | -10/Subcaves | Core integrity fell below 50% 996 | -10/Subcaves | Core integrity fell below 20% 997 | -10/Subcaves | Destroyed by AM-MKX(R) with Subdweller Beam Cannon Last Messages --------------- H3-RHW(R) affixes Scrap Shield Fragment to Scrap Shield. TT-FX2(R) affixes Scrap Shield Fragment to Scrap Shield. Lgt. Assault Rifle destroyed. TC-DCJ(g): "Sorry we're late! Had another grouchy Sub to deal with. Who's the new fellow?" ZL-Y4L(g) destroyed. BV-7QW(g) destroyed. 9I-P8O(R) suffers critical hit (Burn). H3-RHW(R) affixes Scrap Shield Fragment to Scrap Shield. TC-DCJ(g) destroyed. 1H-KUN(R) affixes Scrap Shield Fragment to Scrap Shield. Critical hit (Meltdown: +180). MB-QO0(R): "NOSTUCKSUB!" Lgt. Treads destroyed. The unstable cave ceiling collapses. Map ----- +----------------------------------------------------+ | ??????????????????????????????????????????????? | | ??????????????????????????????????????????????? | | ??????????????????????????????????????????????? | | ??????????????????????????????????????????????? | | ??????????????????????????????????????????????? | | ??????????????????????????????????????????????? | | ??????????????????????????????????????????????? | | ???????????????????????????#??????????????????? | | ?????????????????????????? #??????????????????? | | ????????????????##""????# ##???"?????????????? | | ????????????????? ""???? #?" "?????????????? | | ????????????????? ""????"" " #?????????????? | | ?????????????????# ???# #<& ??????????????? | | ?????????????????# ###;! ;; R "????????????? | | ????????????????## % " "?????????????? | | ????????????????# !%*%! " """ ???????????? | | ????????????????# R[ R ??????????? | | ????????????????##; RRR R ?????????????? | | ???????????????## R R ????????????????? | | ???????????????# #???????????????????? | | ???????????????# #???????????????????? | | ???????????????# #???????????????????? | | ???????????????# R R#???????????????????? | | ???????????????# % #???????????????????? | | ???????????????# ;#???????????????????? | | ???????????????# %@ ;#???????????????????? | | ???????????????#; ! ; ### # #?????????? | | ??????????????## # # % #??????????? | | ??????????????#% #??????????? | | ??????????????# #### ## # #??????????? | | ??????????????## * #???##??#??#???????????? | | ???????????????# %##??????????????????????? | | ??????????????## #####????????????????????? | | ??????????????# # # ##????????????####???? | | ??????????????# = ##??????##### ##??? | | ??????????????# %%* ######## ## #??? | | ??????????????### # ### ## #??? | | ???????????????## ### ### % #???? | | ???????????????# #?# ## % #????? | | ???????????????## ##?# ## #????? | | ????????????????## # ## ## % #????? | | ?????????????????# % #?????? | | ?????????????????# % #?????? | | ?????????????????## # % ##????? | | ??????????????????### % #????? | | ???????????????????# ##### ### #???? | | ???????????????????## ###???## ## #### ##?? | | ????????????????????##?############ ## ## #? | | ???????????????????????# # ##### ## | | ???????????????????????#% | +----------------------------------------------------+ Best States ------------- Heat Dissipation 25 Energy Generation 15 Energy Capacity 400 Matter Stores 300 Matter Capacity 300 Sight Range 16 Terrain Scan Density 10 Resistance: KI 35 Resistance: TH 35 Resistance: EX 35 Resistance: EM 35 Resistance: I 35 Resistance: S 35 Resistance: P 35 Weapon Shielding 33 Evasion (%) 40 Targeting Accuracy 5 Recoil Reduction 2 Offensive Hacking 20 Item Schematics ----------------- None Robot Schematics ------------------ None Fabricated ------------ Nothing Alien Tech Used ----------------- None Achievements -------------- None Challenges ------------ None Game ------ Seed GlidesysCompositeChainsword Manual? 0 Play Time 00:10:23 Cumulative 3.7 hours Start 2024.04.10 @ 22:28:37 End 2024.04.10 @ 22:36:43 Sessions 1 Manual Loads 0 Difficulty Explorer Special Mode None Game No. 11 Rogue 6 Adventurer 0 Explorer 5 Win Type - Total 0 Types 0/0/0/0/0/0/0/0/0 Lore% 7 Gallery% 10 Achievement% 9 Wizard Run 0 Options --------- Layout 1 ASCII 0 Keyboard 0 Movement Arrows Keybinds 0 Fullscreen 1 Font 24/Smallcaps Map View 50x35 Zoom Use 0% Tactical HUD 0 Map Filters NONE Filters NONE Steam 1 RUN: a9b6df0c-abe2-4d15-a129-7025351bb6e8